fUSD/lending_fUSD_20240624
["ID","MTS","AMOUNT","RATE_DAILY","PERIOD"]
[330235606,1719203444807,-151.0,0.0001723,2]
[330235607,1719203444816,-151.0,0.0001723,2]
[330235608,1719203444826,-237.896335,0.0001723,2]
[330235609,1719203444835,-151.0,0.0001723,2]
[330235610,1719203444845,-237.896335,0.0001723,2]
[330235611,1719203444856,-151.0,0.0001723,2]
[330235612,1719203444866,-171.550305,0.0001723,2]
[330235613,1719203444875,-151.0,0.0001723,2]
[330235614,1719203444885,-299.627064,0.0001723,2]
[330235615,1719203444894,-151.0,0.0001723,2]
[330235616,1719203444904,-176.46736,0.0001723,2]
[330235617,1719203444914,-151.0,0.0001723,2]
[330235618,1719203444924,-915.665391,0.0001723,2]
[330235619,1719203444933,-915.665391,0.0001723,2]
[330235620,1719203444942,-151.0,0.0001723,2]
[330235621,1719203444952,-470.344828,0.0001723,2]
[330235622,1719203444962,-470.344828,0.0001723,2]
[330235623,1719203444972,-250.729488,0.0001723,2]
[330235624,1719203444982,-250.729488,0.0001723,2]
[330235625,1719203444991,-151.0,0.0001723,2]
[330235626,1719203445001,-264.64331,0.0001723,2]
[330235627,1719203445012,-264.64331,0.0001723,2]
[330235628,1719203445024,-151.0,0.0001723,2]
[330235629,1719203445034,-151.0,0.0001723,2]
[330235630,1719203445044,-151.0,0.0001723,2]
[330235631,1719203445053,-151.0,0.0001723,2]
[330235632,1719203445065,-151.0,0.0001723,2]
[330235633,1719203445075,-371.093028,0.0001723,2]
[330235634,1719203445085,-371.093028,0.0001723,2]
[330235635,1719203445098,-226.399594,0.0001723,2]
[330235636,1719203445107,-226.399594,0.0001723,2]
[330235637,1719203445117,-151.0,0.0001723,2]
[330235638,1719203445126,-155.684546,0.0001723,2]
[330235639,1719203445136,-151.0,0.0001723,2]
[330235640,1719203445146,-151.0,0.0001723,2]
[330235641,1719203445155,-796.527032,0.0001723,2]
[330235642,1719203445165,-151.0,0.0001723,2]
[330235643,1719203445175,-151.0,0.0001723,2]
[330235644,1719203445184,-796.527032,0.0001723,2]
[330235645,1719203445194,-151.0,0.0001723,2]
[330235646,1719203445203,-1326.167879,0.0001723,2]
[330235647,1719203445213,-275.972644,0.0001723,2]
[330235648,1719203445222,-151.0,0.0001723,2]
[330235649,1719203445233,-151.0,0.0001723,2]
[330235650,1719203445243,-1326.167879,0.0001723,2]
[330235651,1719203445253,-275.972644,0.0001723,2]
[330235652,1719203445262,-151.0,0.0001723,2]
[330235653,1719203445272,-151.0,0.0001723,2]
[330235654,1719203445281,-151.0,0.0001723,2]
[330235655,1719203445291,-151.0,0.0001723,2]
[330235656,1719203445299,-151.0,0.0001723,2]
[330235657,1719203445309,-151.0,0.0001723,2]
[330235658,1719203445318,-796.815612,0.0001723,2]
[330235659,1719203445328,-151.0,0.0001723,2]
[330235660,1719203445338,-796.815612,0.0001723,2]
[330235661,1719203445347,-151.0,0.0001723,2]
[330235662,1719203445357,-448.0,0.0001723,2]
[330235663,1719203445366,-166.906,0.0001723,2]
[330235664,1719203445376,-446.089,0.0001723,2]
[330235665,1719203445385,-661.895,0.0001723,2]
[330235666,1719203445394,-815.585,0.0001723,2]
[330235667,1719203445403,-2411.0,0.0001723,2]
[330235668,1719203445413,-1304.0,0.0001723,2]
[330235669,1719203445422,-3200.0,0.0001723,2]
[330235670,1719203445432,-1983.0,0.0001723,2]
[330235671,1719203445441,-547.0,0.0001723,2]
[330235672,1719203445451,-1660.0,0.0001723,2]
[330235673,1719203445460,-290.0,0.0001723,2]
[330235674,1719203445470,-38166.0,0.0001723,2]
[330235675,1719203445480,-360.974,0.0001723,2]
[330235676,1719203445489,-5798.0,0.0001723,2]
[330235677,1719203445499,-5168.0,0.0001723,2]
[330235678,1719203445508,-1654.0,0.0001723,2]
[330235679,1719203445518,-1199.54,0.0001723,2]
[330235680,1719203445528,-1272.0,0.0001723,2]
[330235681,1719203445538,-12749.19467156,0.00017259,2]
[330235682,1719203445548,-1000.0,0.00017282,2]
[330235683,1719203445557,-1717.24944317,0.00017293,2]
[330235684,1719203445566,-613.82257119,0.00017308,2]
[330235685,1719203445576,-1892.7375448,0.00017308,2]
[330235686,1719203445585,-626.02,0.00017607,2]
[330235687,1719203445594,-150.7,0.00017677,2]
[330235688,1719203445604,-151.0,0.00017808,2]
[330235689,1719203445613,-151.0,0.00017808,2]
[330235690,1719203445622,-151.0,0.00017808,2]
[330235691,1719203445631,-151.0,0.00017808,2]
[330235692,1719203445640,-151.0,0.00017808,2]
[330235693,1719203445650,-156.38823,0.00017808,2]
[330235694,1719203445659,-152.602077,0.00017808,2]
[330235695,1719203445668,-152.602077,0.00017808,2]
[330235696,1719203445677,-538.766268,0.00017808,2]
[330235697,1719203445687,-151.0,0.00017808,2]
[330235698,1719203445696,-151.0,0.00017808,2]
[330235699,1719203445705,-151.0,0.00017808,2]
[330235700,1719203445714,-151.0,0.00017808,2]
[330235701,1719203445723,-1000.0,0.00017808,2]
[330235702,1719203445733,-1000.0,0.00017808,2]
[330235703,1719203445742,-1000.0,0.00017808,2]
[330235704,1719203445751,-1000.0,0.00017808,2]
[330235705,1719203445760,-1000.0,0.00017808,2]
[330235706,1719203445770,-1000.0,0.00017808,2]
[330235707,1719203445779,-1000.0,0.00017808,2]
[330235708,1719203445788,-1000.0,0.00017808,2]
[330235709,1719203445798,-1000.0,0.00017808,2]
[330235710,1719203445807,-1000.0,0.00017808,2]
[330235711,1719203445817,-1000.0,0.00017808,2]
[330235712,1719203445826,-1000.0,0.00017808,2]
[330235713,1719203445836,-1000.0,0.00017808,2]
[330235714,1719203445846,-1000.0,0.00017808,2]
[330235715,1719203445856,-1000.0,0.00017808,2]
[330235716,1719203445867,-1113.0,0.00017808,2]
[330235717,1719203445876,-1000.0,0.00017808,2]
[330235718,1719203445885,-1000.0,0.00017808,2]
[330235719,1719203445895,-1000.0,0.00017808,2]
[330235720,1719203445904,-1000.0,0.00017808,2]
[330235721,1719203445913,-1000.0,0.00017808,2]
[330235722,1719203445922,-1000.0,0.00017808,2]
[330235723,1719203445932,-1000.0,0.00017808,2]
[330235724,1719203445942,-1000.0,0.00017808,2]
[330235725,1719203445951,-1000.0,0.00017808,2]
[330235726,1719203445960,-1000.0,0.00017808,2]
[330235727,1719203445969,-1000.0,0.00017808,2]
[330235728,1719203445978,-1000.0,0.00017808,2]
[330235729,1719203445988,-1000.0,0.00017808,2]
[330235730,1719203445998,-1000.0,0.00017808,2]
[330235731,1719203446007,-1000.0,0.00017808,2]
[330235732,1719203446021,-1000.0,0.00017808,2]
[330235733,1719203446031,-1000.0,0.00017808,2]
[330235734,1719203446040,-1000.0,0.00017808,2]
[330235735,1719203446050,-1000.0,0.00017808,2]
[330235736,1719203446061,-1000.0,0.00017808,2]
[330235737,1719203446071,-1000.0,0.00017808,2]
[330235738,1719203446080,-1000.0,0.00017808,2]
[330235739,1719203446090,-1000.0,0.00017808,2]
[330235740,1719203446101,-1000.0,0.00017808,2]
[330235741,1719203446112,-1000.0,0.00017808,2]
[330235742,1719203446122,-1000.0,0.00017808,2]
[330235743,1719203446131,-1000.0,0.00017808,2]
[330235744,1719203446141,-1000.0,0.00017808,2]
[330235745,1719203446150,-1000.0,0.00017808,2]
[330235746,1719203446159,-1000.0,0.00017808,2]
[330235747,1719203446169,-1000.0,0.00017808,2]
[330235748,1719203446178,-1000.0,0.00017808,2]
[330235749,1719203446187,-1000.0,0.00017808,2]
[330235750,1719203446197,-1000.0,0.00017808,2]
[330235751,1719203446207,-1017.0,0.00017808,2]
[330235752,1719203446216,-199.42300421,0.00017859,2]
[330235753,1719203446226,-2674.2470542,0.00017986,2]
[330235754,1719203446236,-613.82257119,0.00018209,2]
[330235755,1719203446246,-1892.7375448,0.00018209,2]
[330235756,1719203446255,-5000.0,0.00018392,2]
[330235757,1719203446264,-1152.0,0.00018395,2]
[330235759,1719203446274,-1717.24944317,0.00018424,2]
[330235761,1719203446284,-151.0,0.00018447,2]
[330235762,1719203446294,-151.0,0.00018447,2]
[330235763,1719203446304,-7436.15892644,0.00018447,2]
[330235764,1719203446314,-3635.4,0.00018517,2]
[330235766,1719203446323,-150.0,0.00018629,2]
[330235767,1719203446332,-150.0,0.00018645,2]
[330235768,1719203446341,-151.0,0.0001867,2]
[330235769,1719203446351,-151.0,0.0001867,2]
[330235770,1719203446361,-155.734644,0.0001867,2]
[330235771,1719203446370,-371.093028,0.0001867,2]
[330235772,1719203446379,-371.093028,0.0001867,2]
[330235773,1719203446389,-226.399594,0.0001867,2]
[330235774,1719203446398,-226.399594,0.0001867,2]
[330235775,1719203446408,-151.0,0.0001867,2]
[330235776,1719203446418,-151.0,0.0001867,2]
[330235777,1719203446427,-150.0,0.00018764,2]
[330235778,1719203446436,-151.0,0.00018764,2]
[330235779,1719203446448,-915.665391,0.00018764,2]
[330235780,1719203446457,-915.665391,0.00018764,2]
[330235781,1719203446467,-151.0,0.00018764,2]
[330235782,1719203446476,-470.344828,0.00018764,2]
[330235783,1719203446485,-470.344828,0.00018764,2]
[330235784,1719203446495,-250.729488,0.00018764,2]
[330235785,1719203446505,-250.729488,0.00018764,2]
[330235786,1719203446514,-151.0,0.00018764,2]
[330235787,1719203446523,-264.64331,0.00018764,2]
[330235788,1719203446533,-264.64331,0.00018764,2]
[330235789,1719203446542,-151.0,0.00018764,2]
[330235790,1719203446551,-206.352841,0.00018764,2]
[330235791,1719203446561,-150.0,0.0001877,2]
[330235792,1719203446571,-150.0,0.00018775,2]
[330235793,1719203446580,-150.0,0.000188,2]
[330235794,1719203446590,-313.72,0.000188,2]
[330235795,1719203446599,-1001.68,0.000188,2]
[330235796,1719203446609,-1001.68,0.000188,2]
[330235797,1719203446617,-151.0,0.000188,2]
[330235798,1719203446627,-796.527032,0.000188,2]
[330235799,1719203446636,-151.0,0.000188,2]
[330235800,1719203446646,-151.0,0.000188,2]
[330235801,1719203446655,-796.527032,0.000188,2]
[330235802,1719203446664,-173.815559,0.000188,2]
[330235803,1719203446673,-1326.167879,0.000188,2]
[330235804,1719203446683,-275.972644,0.000188,2]
[330235805,1719203446692,-151.0,0.000188,2]
[330235806,1719203446701,-158.501662,0.000188,2]
[330235807,1719203446711,-1326.167879,0.000188,2]
[330235808,1719203446720,-275.972644,0.000188,2]
[330235809,1719203446730,-151.0,0.000188,2]
[330235810,1719203446739,-151.0,0.000188,2]
[330235811,1719203446748,-151.0,0.000188,2]
[330235812,1719203446758,-151.0,0.000188,2]
[330235813,1719203446767,-151.0,0.000188,2]
[330235816,1719203446955,-796.815612,0.000188,2]
[330235818,1719203446965,-796.815612,0.000188,2]
[330235820,1719203446975,-151.0,0.000188,2]
[330235821,1719203446985,-2674.2470542,0.00018804,2]
[330235822,1719203446995,-4567.64137807,0.00018848,2]
[330235823,1719203447005,-151.0,0.00018848,2]
[330235824,1719203447020,-151.0,0.00018848,2]
[330235825,1719203447030,-151.0,0.00018848,2]
[330235826,1719203447039,-562.592208,0.00018848,2]
[330235827,1719203447050,-152.848229,0.00018848,2]
[330235828,1719203447060,-562.592208,0.00018848,2]
[330235829,1719203447070,-152.848229,0.00018848,2]
[330235830,1719203447080,-151.0,0.00018848,2]
[330235831,1719203447090,-151.0,0.00018848,2]
[330235832,1719203447103,-205.288783,0.00018848,2]
[330235833,1719203447115,-205.288783,0.00018848,2]
[330235834,1719203447124,-161.628173,0.00018848,2]
[330235835,1719203447133,-161.628173,0.00018848,2]
[330235836,1719203447143,-151.0,0.00018848,2]
[330235837,1719203447152,-151.0,0.00018848,2]
[330235838,1719203447161,-237.896335,0.00018848,2]
[330235839,1719203447171,-151.0,0.00018848,2]
[330235840,1719203447180,-237.896335,0.00018848,2]
[330235841,1719203447190,-151.0,0.00018848,2]
[330235842,1719203447199,-151.0,0.00018848,2]
[330235843,1719203447209,-288.883678,0.00018848,2]
[330235844,1719203447218,-169.55934429,0.00018849,2]
[330235845,1719203447228,-1000.0,0.00018853,2]
[330235846,1719203447238,-150.0,0.00018881,2]
[330235847,1719203447247,-4827.5168423,0.000189,2]
[330235848,1719203447256,-258.305453,0.00018904,2]
[330235849,1719203447265,-258.305453,0.00018904,2]
[330235850,1719203447275,-258.305453,0.00018904,2]
[330235851,1719203447285,-258.305453,0.00018904,2]
[330235852,1719203447294,-258.305453,0.00018904,2]
[330235853,1719203447303,-258.305453,0.00018904,2]
[330235854,1719203447313,-150.0,0.00018916,2]
[330235855,1719203447322,-33400.62695375,0.00019,2]
[330235856,1719203447332,-610.115158,0.00019,2]
[330235857,1719203447341,-610.115158,0.00019,2]
[330235858,1719203447352,-151.0,0.00019,2]
[330235859,1719203447361,-151.0,0.00019,2]
[330235860,1719203447370,-151.0,0.00019,2]
[330235861,1719203447380,-252.106766,0.00019,2]
[330235862,1719203447389,-252.106766,0.00019,2]
[330235863,1719203447399,-295.040948,0.00019,2]
[330235864,1719203447408,-151.0,0.00019,2]
[330235865,1719203447418,-211.366753,0.00019,2]
[330235866,1719203447427,-151.0,0.00019,2]
[330235867,1719203447437,-175.471354,0.00019,2]
[330235868,1719203447447,-211.366753,0.00019,2]
[330235869,1719203447457,-167.526307,0.00019,2]
[330235870,1719203447466,-167.526307,0.00019,2]
[330235871,1719203447475,-1034.005207,0.00019,2]
[330235872,1719203447485,-325.47373,0.00019,2]
[330235873,1719203447494,-1034.005207,0.00019,2]
[330235874,1719203447504,-325.47373,0.00019,2]
[330235875,1719203447513,-253.181963,0.00019,2]
[330235876,1719203447522,-253.181963,0.00019,2]
[330235877,1719203447531,-2383.26687,0.00019,2]
[330235878,1719203447541,-150.0,0.00019084,2]
[330235879,1719203447551,-151.0,0.00019099,2]
[330235880,1719203447560,-151.0,0.00019099,2]
[330235881,1719203447569,-151.0,0.00019099,2]
[330235882,1719203447579,-153.900266,0.00019099,2]
[330235883,1719203447588,-220.800325,0.00019099,2]
[330235884,1719203447598,-151.0,0.00019099,2]
[330235885,1719203447608,-256.075868,0.00019099,2]
[330235886,1719203447617,-296.832154,0.00019099,2]
[330235887,1719203447626,-174.917193,0.00019099,2]
[330235888,1719203447636,-296.832154,0.00019099,2]
[330235889,1719203447645,-174.917193,0.00019099,2]
[330235890,1719203447654,-202.812366,0.00019099,2]
[330235891,1719203447664,-202.812366,0.00019099,2]
[330235892,1719203447673,-151.0,0.00019099,2]
[330235893,1719203447683,-151.0,0.00019099,2]
[330235894,1719203447692,-151.0,0.00019099,2]
[330235895,1719203447701,-187.172771,0.00019099,2]
[330235896,1719203447711,-187.172771,0.00019099,2]
[330235897,1719203447721,-151.0,0.00019099,2]
[330235898,1719203447731,-151.0,0.00019099,2]
[330235899,1719203447740,-151.0,0.00019099,2]
[330235900,1719203447749,-151.0,0.00019099,2]
[330235901,1719203447758,-657.297499,0.00019099,2]
[330235902,1719203447768,-151.0,0.00019099,2]
[330235903,1719203447777,-657.297499,0.00019099,2]
[330235904,1719203447786,-151.0,0.00019099,2]
[330235905,1719203447796,-152.976913,0.00019099,2]
[330235906,1719203447805,-152.976913,0.00019099,2]
[330235907,1719203447815,-151.0,0.00019099,2]
[330235908,1719203447824,-151.0,0.00019099,2]
[330235909,1719203447833,-151.0,0.00019099,2]
[330235910,1719203447842,-402.856534,0.00019099,2]
[330235911,1719203447852,-402.856534,0.00019099,2]
[330235912,1719203447862,-151.0,0.00019099,2]
[330235913,1719203447871,-151.0,0.00019099,2]
[330235914,1719203447881,-159.64,0.000191,2]
[330235915,1719203447891,-150.0,0.00019111,2]
[330235916,1719203447900,-613.82257119,0.00019111,2]
[330235917,1719203447910,-1892.7375448,0.00019111,2]
[330235918,1719203447919,-305.68,0.00019151,2]
[330235919,1719203447928,-150.0,0.00019157,2]
[330235920,1719203447938,-470.61676061,0.00019178,2]
[330235921,1719203447947,-500.0,0.00019178,2]
[330235922,1719203447956,-587.66641845,0.00019178,2]
[330235923,1719203447966,-837.28,0.00019178,2]
[330235924,1719203447975,-250.0,0.00019178,2]
[330235925,1719203447984,-150.78,0.00019178,2]
[330235926,1719203447994,-150.0,0.00019218,2]
[330235927,1719203448003,-150.0,0.00019222,2]
[330235928,1719203448014,-150.0,0.00019258,2]
[330235929,1719203448026,-151.0,0.00019265,2]
[330235930,1719203448035,-151.0,0.00019265,2]
[330235931,1719203448045,-151.0,0.00019265,2]
[330235932,1719203448054,-151.0,0.00019265,2]
[330235933,1719203448064,-150.0,0.0001929,2]
[330235934,1719203448073,-150.0,0.00019295,2]
[330235935,1719203448083,-151.0,0.00019333,2]
[330235936,1719203448096,-360.0,0.00019333,2]
[330235937,1719203448107,-151.0,0.00019333,2]
[330235938,1719203448116,-360.0,0.00019333,2]
[330235939,1719203448126,-151.0,0.00019333,2]
[330235940,1719203448135,-151.0,0.00019333,2]
[330235941,1719203448145,-160.0,0.0001952,2]
[330235942,1719203448155,-150.0,0.00019535,2]
[330235943,1719203448164,-151.0,0.00019555,2]
[330235944,1719203448174,-152.602077,0.00019555,2]
[330235945,1719203448183,-152.602077,0.00019555,2]
[330235946,1719203448193,-538.766268,0.00019555,2]
[330235947,1719203448202,-151.0,0.00019555,2]
[330235948,1719203448212,-151.0,0.00019555,2]
[330235949,1719203448221,-151.0,0.00019555,2]
[330235950,1719203448231,-151.0,0.00019555,2]
[330235951,1719203448240,-1717.24944317,0.00019555,2]
[330235952,1719203448250,-3964.57243593,0.00019576,2]
[330235953,1719203448259,-150.0,0.00019605,2]
[330235954,1719203448269,-2674.2470542,0.00019621,2]
[330235955,1719203448278,-150.0,0.00019693,2]
[330235956,1719203448287,-2198.85723835,0.00019699,2]
[330235957,1719203448296,-152.17,0.0001972,2]
[330235958,1719203448305,-150.0,0.00019778,2]
[330235959,1719203448314,-1069.82113378,0.00019797,2]
[330235960,1719203448323,-626.02,0.00019871,2]
[330235961,1719203448333,-150.0,0.00019903,2]
[330235962,1719203448342,-1001.68,0.00019975,2]
[330235963,1719203448352,-1001.68,0.00019975,2]
[330235964,1719203448361,-381.35828919,0.0002,2]
[330235965,1719203448370,-76190.42479702,0.0002,2]
[330235966,1719203448379,-980.0,0.0002,2]
[330235967,1719203448388,-262.0,0.0002,2]
[330235968,1719203448398,-1709.46396789,0.0002,7]
[330235969,1719203448407,-151.0,0.0002,2]
[330235970,1719203448416,-151.0,0.0002,2]
[330235971,1719203448425,-151.0,0.0002,2]
[330235972,1719203448435,-151.0,0.0002,2]
[330235973,1719203448443,-151.0,0.0002,2]
[330235974,1719203448453,-428.01416719,0.0002,2]
[330235975,1719203448462,-151.0,0.0002,2]
[330235976,1719203448471,-151.0,0.0002,2]
[330235977,1719203448480,-296.832154,0.0002,2]
[330235978,1719203448489,-174.917193,0.0002,2]
[330235979,1719203448499,-296.832154,0.0002,2]
[330235980,1719203448508,-174.917193,0.0002,2]
[330235981,1719203448517,-202.812366,0.0002,2]
[330235982,1719203448526,-202.812366,0.0002,2]
[330235983,1719203448535,-151.0,0.0002,2]
[330235984,1719203448545,-151.0,0.0002,2]
[330235985,1719203448554,-151.0,0.0002,2]
[330235986,1719203448563,-187.172771,0.0002,2]
[330235987,1719203448572,-187.172771,0.0002,2]
[330235988,1719203448583,-151.0,0.0002,2]
[330235989,1719203448592,-151.0,0.0002,2]
[330235990,1719203448602,-151.0,0.0002,2]
[330235991,1719203448611,-151.0,0.0002,2]
[330235992,1719203448620,-657.297499,0.0002,2]
[330235993,1719203448629,-151.0,0.0002,2]
[330235994,1719203448639,-657.297499,0.0002,2]
[330235995,1719203448648,-165.198521,0.0002,2]
[330235996,1719203448657,-152.976913,0.0002,2]
[330235997,1719203448666,-152.976913,0.0002,2]
[330235998,1719203448675,-151.0,0.0002,2]
[330235999,1719203448685,-151.0,0.0002,2]
[330236000,1719203448694,-151.0,0.0002,2]
[330236001,1719203448704,-402.856534,0.0002,2]
[330236002,1719203448713,-402.856534,0.0002,2]
[330236003,1719203448723,-151.0,0.0002,2]
[330236004,1719203448732,-151.0,0.0002,2]
[330236005,1719203448741,-153.710627,0.0002,2]
[330236006,1719203448751,-151.0,0.0002,2]
[330236007,1719203448760,-151.0,0.0002,2]
[330236008,1719203448769,-562.592208,0.0002,2]
[330236009,1719203448779,-152.848229,0.0002,2]
[330236010,1719203448792,-562.592208,0.0002,2]
[330236011,1719203448801,-152.848229,0.0002,2]
[330236012,1719203448811,-151.0,0.0002,2]
[330236013,1719203448820,-151.0,0.0002,2]
[330236014,1719203448829,-610.115158,0.0002,2]
[330236015,1719203448838,-610.115158,0.0002,2]
[330236016,1719203448848,-151.0,0.0002,2]
[330236017,1719203448858,-151.0,0.0002,2]
[330236018,1719203448867,-151.0,0.0002,2]
[330236019,1719203448876,-898.1038551,0.0002,2]
[330236020,1719203448886,-252.106766,0.0002,2]
[330236021,1719203448896,-252.106766,0.0002,2]
[330236022,1719203448905,-151.0,0.0002,2]
[330236023,1719203448915,-211.366753,0.0002,2]
[330236024,1719203448925,-151.0,0.0002,2]
[330236025,1719203448934,-211.366753,0.0002,2]
[330236026,1719203448944,-167.526307,0.0002,2]
[330236027,1719203448953,-167.526307,0.0002,2]
[330236028,1719203448963,-1000.0,0.0002,2]
[330236029,1719203448973,-1034.005207,0.0002,2]
[330236030,1719203448983,-325.47373,0.0002,2]
[330236031,1719203448994,-1034.005207,0.0002,2]
[330236032,1719203449004,-205.288783,0.0002,2]
[330236033,1719203449016,-325.47373,0.0002,2]
[330236034,1719203449027,-205.288783,0.0002,2]
[330236035,1719203449036,-253.181963,0.0002,2]
[330236036,1719203449046,-253.181963,0.0002,2]
[330236037,1719203449057,-161.628173,0.0002,2]
[330236038,1719203449067,-161.628173,0.0002,2]
[330236039,1719203449076,-151.0,0.0002,2]
[330236040,1719203449086,-151.0,0.0002,2]
[330236041,1719203449098,-237.896335,0.0002,2]
[330236042,1719203449112,-151.0,0.0002,2]
[330236043,1719203449121,-237.896335,0.0002,2]
[330236044,1719203449131,-151.0,0.0002,2]
[330236045,1719203449140,-151.0,0.0002,2]
[330236046,1719203449148,-151.0,0.0002,2]
[330236047,1719203449158,-49755.17182111,0.0002,2]
[330236048,1719203449167,-225.0,0.0002,2]
[330236049,1719203449176,-949.1,0.0002,2]
[330236050,1719203449186,-915.665391,0.0002,2]
[330236051,1719203449195,-915.665391,0.0002,2]
[330236052,1719203449205,-151.0,0.0002,2]
[330236053,1719203449214,-470.344828,0.0002,2]
[330236054,1719203449223,-470.344828,0.0002,2]
[330236055,1719203449234,-250.729488,0.0002,2]
[330236056,1719203449244,-250.729488,0.0002,2]
[330236057,1719203449253,-151.0,0.0002,2]
[330236058,1719203449263,-264.64331,0.0002,2]
[330236059,1719203449272,-511.5,0.0002,2]
[330236060,1719203449282,-264.64331,0.0002,2]
[330236061,1719203449291,-151.0,0.0002,2]
[330236062,1719203449300,-151.0,0.0002,2]
[330236063,1719203449309,-258.305453,0.0002,2]
[330236064,1719203449318,-258.305453,0.0002,2]
[330236065,1719203449327,-356.0,0.0002,2]
[330236066,1719203449337,-151.0,0.0002,2]
[330236067,1719203449346,-371.093028,0.0002,2]
[330236068,1719203449356,-371.093028,0.0002,2]
[330236069,1719203449365,-226.399594,0.0002,2]
[330236070,1719203449374,-226.399594,0.0002,2]
[330236071,1719203449383,-151.0,0.0002,2]
[330236072,1719203449392,-151.0,0.0002,2]
[330236073,1719203449401,-1696.0,0.0002,2]
[330236074,1719203449410,-151.0,0.0002,2]
[330236075,1719203449419,-796.527032,0.0002,2]
[330236076,1719203449428,-151.0,0.0002,2]
[330236077,1719203449436,-151.0,0.0002,2]
[330236078,1719203449446,-796.527032,0.0002,2]
[330236079,1719203449455,-1326.167879,0.0002,2]
[330236080,1719203449464,-275.972644,0.0002,2]
[330236081,1719203449473,-151.0,0.0002,2]
[330236082,1719203449482,-1326.167879,0.0002,2]
[330236083,1719203449491,-275.972644,0.0002,2]
[330236084,1719203449500,-151.0,0.0002,2]
[330236085,1719203449509,-151.0,0.0002,2]
[330236086,1719203449518,-151.0,0.0002,2]
[330236087,1719203449527,-151.0,0.0002,2]
[330236088,1719203449539,-151.0,0.0002,2]
[330236089,1719203449548,-151.0,0.0002,2]
[330236090,1719203449557,-796.815612,0.0002,2]
[330236091,1719203449566,-151.0,0.0002,2]
[330236092,1719203449578,-796.815612,0.0002,2]
[330236093,1719203449587,-188.387673,0.0002,2]
[330236094,1719203449596,-613.82257119,0.00020013,2]
[330236095,1719203449606,-1892.7375448,0.00020013,2]
[330236096,1719203449614,-150.0,0.00020016,2]
[330236097,1719203449623,-150.0,0.00020023,2]
[330236098,1719203449632,-715.71837698,0.00020025,2]
[330236099,1719203449641,-150.0,0.00020026,2]
[330236100,1719203449650,-313.72,0.00020065,2]
[330236101,1719203449660,-150.0,0.00020076,2]
[330236102,1719203449669,-150.0,0.00020132,2]
[330236103,1719203449678,-1613.0,0.00020179,2]
[330236104,1719203449687,-151.0,0.000202,2]
[330236105,1719203449696,-151.0,0.000202,2]
[330236106,1719203449705,-151.0,0.000202,2]
[330236107,1719203449715,-151.0,0.000202,2]
[330236108,1719203449723,-152.602077,0.000202,2]
[330236109,1719203449733,-152.602077,0.000202,2]
[330236110,1719203449742,-538.766268,0.000202,2]
[330236111,1719203449751,-151.0,0.000202,2]
[330236112,1719203449760,-238.319252,0.000202,2]